bitfinex-derivatives/quotes_BNBF0:USTF0_20250128
["timestamp","ask_amount","ask_price","bid_price","bid_amount"]
[1738047413167,0.24272336,679.58,678.16,0.27064464]
[1738047413368,0.24272336,679.62,678.17,0.2949113]
[1738047413563,0.24273766,679.61,678.18,0.27064464]
[1738047413870,0.24273766,679.6,678.19,0.2949026]
[1738047414164,0.24273766,679.59,678.2,0.27064464]
[1738047414367,0.24273766,679.58,678.21,0.29489391]
[1738047414569,0.24273766,679.57,678.22,0.27064464]
[1738047414762,0.24273766,679.62,678.22,0.5655342]
[1738047414966,0.24273766,679.61,678.23,0.27064464]
[1738047415166,0.24273766,679.6,678.23,0.27064464]
[1738047415364,0.24273766,679.62,678.23,0.27064464]
[1738047415564,0.24273766,679.61,678.23,0.27064464]
[1738047415870,0.24273766,679.6,678.23,0.27064464]
[1738047416070,0.29427776,679.63,678.23,0.27064464]
[1738047416071,0.24273766,679.59,678.23,0.27064464]
[1738047416266,0.24273766,679.58,678.23,0.27064464]
[1738047416466,0.24273766,679.62,678.23,0.27064464]
[1738047416772,0.24279582,679.61,678.24,0.27065029]
[1738047416964,0.24279582,679.62,678.23,0.27065029]
[1738047417165,0.24279582,679.61,678.24,0.27065029]
[1738047417368,0.24279582,679.62,678.23,0.27065029]
[1738047417566,0.24279582,679.61,678.24,0.27065029]
[1738047417872,0.29427776,679.63,678.22,0.29488956]
[1738047418172,0.24280377,679.62,678.23,0.27065361]
[1738047419565,0.29427776,679.63,678.22,0.29488956]
[1738047419767,0.2428076,679.62,678.23,0.27065218]
[1738047420675,0.29428642,679.61,678.23,0.27065218]
[1738047420973,0.2428076,679.6,678.23,0.27065218]
[1738047421173,0.2428076,679.6,678.22,0.29488956]
[1738047421174,0.53707596,679.59,678.24,0.27068902]
[1738047421368,0.5370803,679.58,678.25,0.27068902]
[1738047421568,0.53708463,679.57,678.23,0.27068902]
[1738047421771,0.53708896,679.56,678.24,0.27068902]
[1738047421973,0.29431241,679.55,678.24,0.27068902]
[1738047422167,0.24278088,679.54,678.25,0.27068902]
[1738047422374,0.29432107,679.53,678.26,0.27068902]
[1738047422574,0.24278088,679.52,678.27,0.27068902]
[1738047422868,0.24278088,679.52,678.28,0.27068902]
[1738047423072,0.24278088,679.52,678.23,0.27068902]
[1738047423272,0.24278088,679.52,678.24,0.27068902]
[1738047423475,0.24278088,679.52,678.23,0.27068902]
[1738047423669,0.24278088,679.52,678.24,0.27068902]
[1738047423875,0.24278088,679.52,678.23,0.27068902]
[1738047424075,0.24278088,679.52,678.24,0.27068902]
[1738047424278,0.53710628,679.52,678.25,0.27068902]
[1738047424477,0.2943254,679.52,678.22,0.29488956]
[1738047424776,0.24279343,679.51,678.23,0.27069774]
[1738047426377,0.24282008,679.5,678.24,0.27070359]
[1738047426678,0.24282008,679.49,678.25,0.27070359]
[1738047426978,0.24282008,679.51,678.23,0.27070359]
[1738047427180,0.24282008,679.5,678.24,0.27070359]
[1738047427479,0.24282008,679.49,678.25,0.27070359]
[1738047427679,0.24282008,679.51,678.23,0.27070359]
[1738047427879,0.24282008,679.5,678.24,0.27070359]
[1738047428079,0.2943384,679.49,678.22,0.29488956]
[1738047429482,0.24278262,679.48,678.22,0.29488956]
[1738047429683,0.29434706,679.47,677.85,1.09366971]
[1738047429882,0.24278262,679.46,677.86,1.65949617]
[1738047430078,0.29435572,679.45,677.87,0.56582211]
[1738047430283,0.24278262,679.44,677.88,0.56581775]
[1738047430477,0.29436439,679.43,677.89,0.5658134]
[1738047430678,0.24278262,679.42,677.9,0.56580905]
[1738047430882,0.24278262,679.42,677.91,0.5658047]
[1738047431178,0.29437305,679.41,677.92,0.27078029]
[1738047431378,0.24278262,679.4,677.92,0.56580035]
[1738047431582,0.29438172,679.39,677.93,0.27078029]
[1738047431786,0.29438172,679.39,677.94,0.29501135]
[1738047431980,0.24278262,679.38,677.95,0.27078029]
[1738047432183,0.24278262,679.38,677.96,0.29500265]
[1738047432385,0.24278262,679.38,677.97,0.27078029]
[1738047432685,0.24276352,679.37,677.98,0.56575676]
[1738047432887,0.24276352,679.38,677.99,0.27076281]
[1738047433079,0.29438172,679.39,677.98,0.29499395]
[1738047433279,0.24276134,679.38,677.99,0.27076398]
[1738047433684,0.29438172,679.39,677.98,0.29499395]
[1738047433879,0.24276508,679.38,677.99,0.27076179]
[1738047434079,0.24276508,679.38,677.99,1.80887201]
[1738047434281,0.24276508,679.38,678.0,0.27076179]
[1738047436084,0.29439039,679.37,678.0,0.27076179]
[1738047436285,0.24276508,679.36,678.0,0.27076179]
[1738047436481,0.5371598,679.36,678.0,0.27076179]
[1738047436678,0.24276508,679.35,678.0,0.27076179]
[1738047437284,0.29439472,679.36,677.99,1.53811022]
[1738047437485,0.24277993,679.35,678.0,0.27076764]
[1738047441085,0.24278689,679.34,678.01,0.27076683]
[1738047441280,0.24278689,679.33,678.02,0.27076683]
[1738047441480,0.24278689,679.35,678.0,0.27076683]
[1738047441683,0.24278689,679.34,678.01,0.27076683]
[1738047441886,0.24278689,679.33,678.02,0.27076683]
[1738047442185,0.24278689,679.32,678.03,0.27076683]
[1738047442387,0.24278689,679.35,678.0,0.27076683]
[1738047442585,0.24278689,679.34,678.01,0.27076683]
[1738047442785,0.24280737,679.33,678.02,0.27076326]
[1738047442982,0.24280737,679.35,678.0,0.27076326]
[1738047443185,0.24280737,679.34,678.01,0.27076326]
[1738047443381,0.24280737,679.35,678.0,0.27076326]
[1738047443583,0.24280737,679.34,678.01,0.27076326]
[1738047443781,0.24280737,679.35,678.0,0.27076326]
[1738047443984,0.24280737,679.34,678.01,0.27076326]
[1738047444182,0.24280737,679.34,677.99,1.53811022]
[1738047444183,0.24280737,679.33,678.02,0.27076326]
[1738047444381,0.24280737,679.35,678.0,0.27076326]
[1738047444581,0.24280737,679.34,678.01,0.27076326]
[1738047444887,0.24280737,679.33,678.02,0.27076326]
[1738047445182,0.24280737,679.32,678.03,0.27076326]
[1738047445390,0.24280737,679.31,678.04,0.27076326]
[1738047445588,0.24280737,679.35,678.0,0.27076326]
[1738047445887,0.24280737,679.34,678.01,0.27076326]
[1738047446088,0.24280737,679.35,678.0,0.27076326]
[1738047446389,0.24280737,679.34,678.01,0.27076326]
[1738047446582,0.24280737,679.35,678.0,0.27076326]
[1738047446986,0.24280737,679.35,677.99,1.53811022]
[1738047446987,0.24280885,679.34,678.01,0.27076115]
[1738047447186,0.29439472,679.36,678.0,0.27076115]
[1738047447386,0.29439472,679.36,677.99,1.53811022]
[1738047447684,0.29439472,679.36,678.0,0.56572956]
[1738047447891,0.29439472,679.36,678.01,0.27074431]
[1738047448490,0.29439472,679.36,678.02,0.29497654]
[1738047448685,0.29439472,679.36,678.03,0.27074431]
[1738047449986,0.29439472,679.36,678.04,0.29496784]
[1738047450186,0.29439472,679.36,678.05,0.27074431]
[1738047450487,0.24284841,679.35,678.06,0.29495914]
[1738047450789,0.24284841,679.35,678.07,0.27074431]
[1738047450985,0.24284841,679.35,678.06,0.29495914]
[1738047450986,0.29439472,679.36,678.06,0.29495914]
[1738047451191,0.24285313,679.35,678.07,0.27071129]
[1738047451886,0.29439472,679.36,678.06,0.29495914]
[1738047452087,0.24286469,679.35,678.07,0.27071193]
[1738047452287,0.29439472,679.36,678.08,0.29495044]
[1738047452489,0.29439472,679.36,678.09,0.27071193]
[1738047452791,0.29439472,679.36,678.1,0.29494174]
[1738047452993,0.29439472,679.36,678.15,1.09366971]
[1738047453191,0.29439472,679.36,678.16,0.27071193]
[1738047453592,0.29439472,679.36,678.15,1.09366971]
[1738047453894,0.29439472,679.36,678.16,0.27070467]
[1738047454985,0.29439472,679.36,678.15,1.09366971]
[1738047455690,0.29439472,679.36,678.1,0.29494174]
[1738047455691,0.29439472,679.36,678.1,1.38861145]
[1738047458893,0.29439472,679.36,678.1,0.29494174]
[1738047459596,0.29439472,679.36,678.11,0.27069738]
[1738047459790,0.29439472,679.36,678.12,0.29493305]
[1738047459994,0.29439472,679.36,678.13,0.27069738]
[1738047460289,0.29439472,679.36,678.13,0.56562608]
[1738047460595,0.29439472,679.36,678.13,0.2949287]
[1738047462498,0.29439472,679.36,678.14,0.27068784]
[1738047470006,0.29439472,679.36,678.15,0.27068879]
[1738047470204,0.29439472,679.36,678.14,0.27068879]
[1738047470403,0.29439472,679.36,678.15,0.27068879]
[1738047470606,0.24285716,679.35,678.14,1.3643585]
[1738047470806,0.24285716,679.35,678.16,0.27068879]
[1738047471105,0.29439472,679.36,678.17,0.27068879]
[1738047471298,0.24287288,679.35,678.15,0.27068879]
[1738047471504,0.29439472,679.36,678.16,0.27068879]
[1738047471705,0.29439472,679.36,678.15,0.27068879]
[1738047472007,0.29439472,679.36,678.16,0.27068879]
[1738047472306,0.29439472,679.36,678.17,0.27068879]
[1738047472505,0.29439472,679.36,678.14,1.09366971]
[1738047472506,0.29439472,679.36,678.15,0.27068879]
[1738047473606,0.29439472,679.36,678.14,1.09366971]
[1738047473805,0.24285998,679.35,678.15,0.27070586]
[1738047474308,0.29439472,679.36,678.15,0.27070586]
[1738047474508,0.29439472,679.36,678.14,1.09366971]
[1738047475505,0.24283759,679.35,678.14,1.09366971]
[1738047476212,0.29439472,679.36,678.14,1.09366971]
[1738047477008,0.29439472,679.36,678.15,0.27072462]
[1738047477204,0.29439472,679.36,678.14,1.09366971]
[1738047477402,0.29439472,679.36,678.15,0.27072532]
[1738047478714,0.29439472,679.36,678.14,1.09366971]
[1738047479314,0.29439472,679.36,678.13,0.2949287]
[1738047479609,0.29439472,679.36,678.14,0.27072584]
[1738047480014,0.24284663,679.35,678.14,0.27072584]
[1738047480412,0.29439472,679.36,678.13,0.2949287]
[1738047480909,0.24285055,679.35,678.14,0.27072618]
[1738047482414,0.24284719,679.34,678.15,0.27072785]
[1738047482714,0.24284719,679.33,678.16,0.27072785]
[1738047482914,0.24284719,679.35,678.14,0.27072785]
[1738047483108,0.24284719,679.34,678.15,0.27072785]
[1738047483308,0.24284719,679.33,678.16,0.27072785]
[1738047483509,0.24284719,679.32,678.17,0.27072785]
[1738047483715,0.24284719,679.35,678.14,0.27072785]
[1738047483916,0.24284719,679.34,678.15,0.27072785]
[1738047484113,0.24286391,679.33,678.16,0.27072649]
[1738047484312,0.24286391,679.32,678.17,0.27072649]
[1738047484510,0.29439472,679.36,678.14,0.27072649]
[1738047484511,0.24286391,679.35,678.14,0.27072649]
[1738047484811,0.24286391,679.35,678.13,0.2949287]
[1738047484812,0.24286391,679.34,678.15,0.27072649]
[1738047485010,0.29439472,679.36,678.13,0.2949287]
[1738047485011,0.24286391,679.33,678.16,0.27072649]
[1738047485215,0.24286391,679.32,678.17,0.27072649]
[1738047485418,0.24286391,679.35,678.14,0.27072649]
[1738047485612,0.29439472,679.36,678.15,0.27072649]
[1738047485613,0.24286391,679.34,678.15,0.27072649]
[1738047485814,0.24285244,679.33,678.16,0.27072677]
[1738047486015,0.24285244,679.35,678.14,0.27072677]
[1738047486313,0.24285244,679.34,678.15,0.27072677]
[1738047486513,0.24285244,679.35,678.14,0.27072677]
[1738047486712,0.24285244,679.34,678.15,0.27072677]
[1738047486918,0.24285244,679.35,678.14,0.27072677]
[1738047487219,0.24285244,679.34,678.15,0.27072677]
[1738047487519,0.24285791,679.33,678.16,0.27072594]
[1738047487720,0.24285791,679.35,678.14,0.27072594]
[1738047487912,0.29439472,679.36,678.13,0.2949287]
[1738047487913,0.24285791,679.34,678.15,0.27072594]
[1738047488113,0.24285791,679.35,678.14,0.27072594]
[1738047488315,0.24285791,679.34,678.15,0.27072594]
[1738047488512,0.24285791,679.33,678.16,0.27072594]
[1738047488819,0.29439472,679.36,678.17,0.27072594]
[1738047489018,0.29439472,679.36,678.18,0.27072594]
[1738047489220,0.29439472,679.36,678.14,0.27072594]
[1738047489419,0.29439472,679.36,678.13,0.2949287]
[1738047489620,0.29439472,679.36,678.14,0.27069449]
[1738047491014,0.29439472,679.36,678.23,1.10278167]
[1738047491219,0.29439472,679.36,678.24,0.27069449]
[1738047493016,0.29439472,679.36,678.25,0.27068416]
[1738047493216,0.29439472,679.36,678.23,1.10278167]
[1738047493521,0.29439472,679.36,678.24,0.27068279]
[1738047495017,0.29439472,679.36,678.23,0.27068279]
[1738047496721,0.29439472,679.36,678.24,0.27068644]
[1738047496922,0.29439472,679.36,678.23,0.27068644]
[1738047497117,0.29439472,679.36,678.24,0.27068644]
[1738047497422,0.29439472,679.36,678.22,1.10278167]
[1738047498423,0.29439472,679.36,678.23,0.27067273]
[1738047500324,0.29439472,679.36,678.22,1.10278167]
[1738047500525,0.29439472,679.36,678.23,0.27067372]
[1738047500725,0.29439472,679.36,678.19,1.10278167]
[1738047500726,0.29439472,679.36,678.24,0.27067372]
[1738047500926,0.29439472,679.36,678.25,0.27067372]
[1738047501125,0.29439472,679.36,678.26,0.27067372]
[1738047501326,0.29439472,679.36,678.2,0.27067372]
[1738047501526,0.29439472,679.36,678.21,0.56556658]
[1738047501726,0.29439472,679.36,678.22,0.27067267]
[1738047503832,0.29439472,679.36,678.21,0.29489391]
[1738047504128,0.29439472,679.36,678.22,0.27067174]
[1738047504728,0.29439472,679.36,678.21,0.29489391]
[1738047504924,0.29439472,679.36,678.22,0.27067331]
[1738047508127,0.24285992,679.35,678.22,0.27067331]
[1738047508733,0.24285992,679.35,678.28,1.10278167]
[1738047508935,0.24285992,679.35,678.29,0.27067331]
[1738047509227,0.29439472,679.36,678.28,1.10278167]
[1738047509431,0.24285766,679.35,678.29,0.27067569]
[1738047510233,0.24285825,679.34,678.3,0.27067538]
[1738047510531,0.24285825,679.34,678.28,1.10278167]
[1738047510532,0.29439472,679.36,678.31,0.27067538]
[1738047510732,0.24286397,679.35,678.29,0.27067538]
[1738047510929,0.24286397,679.35,678.3,0.27067538]
[1738047511129,0.24286397,679.35,678.31,0.27067538]
[1738047511325,0.29439472,679.36,678.32,0.27067436]
[1738047511629,0.24286255,679.35,678.33,0.27067436]
[1738047511832,0.24286255,679.35,678.34,0.27067436]
[1738047512033,0.24286255,679.35,678.29,0.27067436]
[1738047512228,0.29439472,679.36,678.32,1.10278167]
[1738047512431,0.29439472,679.36,678.33,0.27067436]
[1738047513032,0.29439472,679.36,678.34,0.27067217]
[1738047513235,0.29439472,679.36,678.33,0.27067217]
[1738047513433,0.29439472,679.36,678.34,0.27067217]
[1738047513633,0.29439472,679.36,678.33,0.27067217]
[1738047513931,0.29439472,679.36,678.34,0.27067217]
[1738047514130,0.29439472,679.36,678.32,1.10278167]
[1738047515033,0.29439472,679.36,678.33,0.27067302]
[1738047515436,0.29439472,679.36,678.31,0.27067302]
[1738047515634,0.29439472,679.36,678.34,0.27067302]
[1738047515833,0.29439472,679.36,678.3,1.10278167]
[1738047516027,0.29439472,679.36,678.31,0.27068007]
[1738047518434,0.29439472,679.36,678.28,0.27068007]
[1738047518629,0.29439472,679.36,678.29,0.27068007]
[1738047518833,0.29439472,679.36,678.28,0.27068007]
[1738047519034,0.29439472,679.36,678.29,0.27068007]
[1738047519334,0.29439472,679.36,678.3,0.27068007]
[1738047519529,0.29439472,679.36,678.28,0.27068007]
[1738047519735,0.29439472,679.36,678.29,0.27068007]
[1738047519933,0.29439472,679.36,678.28,0.27068007]
[1738047520134,0.29439472,679.36,678.27,1.10278167]
[1738047520434,0.29439472,679.36,678.28,0.27066888]
[1738047521031,0.29439472,679.36,678.31,1.10278167]
[1738047521232,0.29439472,679.36,678.32,0.27066888]
[1738047522831,1.09528643,679.42,678.32,0.56551497]
[1738047523035,1.09528643,679.42,678.33,0.27066888]
[1738047524635,1.09528643,679.63,678.33,0.27066888]
[1738047524636,1.09528643,679.41,678.35,1.10278167]
[1738047524935,1.09528643,679.41,678.36,0.27066888]
[1738047527148,1.09528643,679.41,678.36,0.56549758]
[1738047527357,1.09528643,679.41,678.37,0.27066888]
[1738047527770,1.09528643,679.41,678.38,0.27059737]
[1738047527971,1.08171365,679.41,678.39,0.27059737]
[1738047528165,1.08171365,679.55,678.42,1.10278167]
[1738047528462,1.08171365,679.55,678.43,0.27059737]
[1738047529472,1.08171365,679.55,678.44,0.27060013]
[1738047529670,1.08171365,679.55,678.45,0.27060013]
[1738047529871,1.08171365,679.55,678.46,0.27060013]
[1738047530075,1.08171365,679.55,678.47,0.27060013]
[1738047530467,1.08171365,679.55,678.48,0.27060013]
[1738047530666,1.08171365,679.55,678.49,0.27060013]
[1738047530870,1.08171365,679.55,678.5,0.27060013]
[1738047531072,1.08171365,679.55,678.42,1.10278167]
[1738047531272,2.23620981,680.2,678.46,1.10278167]
[1738047531273,1.09528643,679.81,678.46,1.10278167]
[1738047531574,0.24358498,679.8,678.47,0.2705978]
[1738047532275,0.2942085,679.79,678.47,0.2705978]
[1738047532476,0.24358498,679.78,678.47,0.2705978]
[1738047533166,0.2942085,679.79,678.46,1.10278167]
[1738047533167,0.53780429,679.77,678.48,0.27061004]
[1738047533368,0.24358713,679.76,678.49,0.27061004]
[1738047533573,0.24358713,679.76,678.47,0.27061004]
[1738047533768,0.24358713,679.76,678.48,0.27061004]
[1738047533971,0.24358713,679.76,678.47,0.27061004]
[1738047534169,0.24358713,679.76,678.48,0.27061004]
[1738047534370,0.24358713,679.76,678.4,0.27061004]
[1738047534571,0.24358713,679.76,678.41,0.27061004]
[1738047534767,0.24358713,679.76,678.4,0.27061004]
[1738047534972,0.24358713,679.76,678.39,1.10278167]
[1738047536177,0.24358713,679.76,678.36,0.2948287]
[1738047536677,0.24356622,679.75,678.36,0.2948287]
[1738047536975,0.24356622,679.74,678.36,0.2948287]
[1738047537275,0.24356622,679.76,678.36,0.2948287]
[1738047537466,0.24356622,679.75,678.36,0.2948287]
[1738047537863,0.24356622,679.74,678.36,0.2948287]
[1738047538064,0.24356622,679.73,678.36,0.2948287]
[1738047538270,0.24356622,679.72,678.36,0.2948287]
[1738047538468,0.24356622,679.76,678.36,0.2948287]
[1738047538668,0.29421716,679.77,678.36,0.2948287]
[1738047538872,0.24355541,679.76,678.36,0.2948287]
[1738047540164,0.29421716,679.77,678.36,0.2948287]
[1738047540368,0.24354244,679.76,678.36,0.2948287]
[1738047541255,0.29422581,679.75,678.36,0.2948287]
[1738047541649,0.24354244,679.74,678.36,0.2948287]
[1738047541843,0.29423447,679.73,678.36,0.2948287]
[1738047544547,0.24356446,679.72,678.37,0.27062679]
[1738047544746,0.29424313,679.71,678.37,0.27062679]
[1738047544950,0.24356446,679.7,678.37,0.27062679]
[1738047545150,0.29425179,679.69,678.37,0.27062679]
[1738047545445,0.24356446,679.68,678.37,0.27062679]
[1738047545652,0.29426044,679.67,678.37,0.27062679]
[1738047545844,0.24356446,679.66,678.37,0.27062679]
[1738047546048,0.2942691,679.65,678.37,0.27062679]
[1738047546248,0.24356446,679.64,678.37,0.27062679]
[1738047548846,0.24356446,679.64,678.42,1.10278167]
[1738047549049,0.24356446,679.64,678.43,0.27062679]
[1738047550345,0.2942691,679.65,678.42,1.10278167]
[1738047550545,0.24356257,679.64,678.43,0.27061855]
[1738047551453,0.24356257,679.64,678.45,1.10278167]
[1738047551653,0.24356257,679.64,678.46,0.27061855]
[1738047554670,0.24356257,679.64,678.47,0.27061855]
[1738047554869,0.24356257,679.64,678.44,0.27061855]
[1738047555070,0.24356257,679.64,678.45,0.27061855]
[1738047555269,0.24356257,679.64,678.46,0.27061855]
[1738047555470,0.24356257,679.64,678.47,0.27061855]
[1738047555670,0.24356257,679.64,678.43,1.10278167]
[1738047555671,0.24356257,679.64,678.44,0.27061855]
[1738047555873,0.24356257,679.64,678.43,1.10278167]
[1738047556071,0.24356257,679.64,678.44,0.2706201]
[1738047559573,0.24356257,679.64,678.44,1.37340177]
[1738047559768,0.24356257,679.64,678.45,0.2706201]
[1738047561975,0.24356257,679.64,678.49,1.10278167]
[1738047562176,0.24356257,679.64,678.5,0.2706201]
[1738047565180,0.24356236,679.63,678.49,1.10278167]
[1738047565377,0.24356236,679.64,678.49,1.10278167]
[1738047565573,0.24356236,679.63,678.5,0.2706226]
[1738047565778,0.24356236,679.62,678.5,0.2706226]
[1738047566080,0.24356236,679.61,678.5,0.2706226]
[1738047566277,0.24356236,679.6,678.5,0.2706226]
[1738047566473,0.24356236,679.59,678.5,0.2706226]
[1738047566674,0.24356236,679.64,678.5,0.2706226]
[1738047568375,1.33884879,679.64,678.53,1.10278167]
[1738047568580,1.09528643,679.64,678.53,1.10278167]
[1738047568780,0.24356354,679.63,678.54,0.27061952]
[1738047570577,1.09528643,679.64,678.53,1.10278167]
[1738047570783,0.24355845,679.63,678.54,0.27061975]
[1738047571683,1.09528643,679.6,678.58,1.10278167]
[1738047571878,0.24355845,679.59,678.58,1.10278167]
[1738047572783,1.09528643,679.6,678.58,1.10278167]
[1738047574386,1.09528643,679.57,678.58,1.10278167]
[1738047577384,0.2942691,679.65,678.48,1.53716471]
[1738047577585,0.24358731,679.64,678.48,1.53716471]
[1738047580086,0.2942691,679.65,678.48,1.53716471]
[1738047580287,0.24358259,679.64,678.48,1.53716471]
[1738047582287,0.2942691,679.65,678.48,1.53716471]
[1738047582791,0.24358372,679.64,678.48,2.63994638]
[1738047583593,0.2435883,679.63,678.48,2.63994638]
[1738047583782,0.2942691,679.65,678.48,2.63994638]
[1738047584182,0.24357956,679.64,678.48,2.63994638]
[1738047585590,0.24357956,679.64,678.5,1.10278167]
[1738047587388,0.2942691,679.65,678.5,1.10278167]
[1738047587592,0.24357736,679.64,678.5,1.10278167]
[1738047590790,0.2942691,679.65,678.51,0.29476352]
[1738047591197,0.2942691,679.65,678.52,1.10278167]
[1738047591393,0.2942691,679.65,678.53,0.29475483]
[1738047592293,1.09528643,679.71,678.54,0.27050513]
[1738047592493,1.09528643,679.71,678.55,0.29474614]
[1738047592697,1.09528643,679.71,678.56,0.27050513]
[1738047593093,1.09528643,679.71,678.57,0.29473746]
[1738047593291,1.09528643,679.71,678.58,0.27050513]
[1738047593597,1.09528643,679.71,678.59,0.29472877]
[1738047593799,1.09528643,679.71,678.6,0.27050513]
[1738047593994,1.09528643,679.71,678.61,0.29472008]
[1738047594196,1.09528643,679.71,678.62,0.27050513]
[1738047594396,1.09528643,679.71,678.63,0.2947114]
[1738047594798,1.09528643,679.81,678.63,0.2947114]
[1738047594997,1.09528643,680.3,678.63,0.2947114]
[1738047595194,0.29399658,680.28,678.63,0.2947114]
[1738047595399,0.24370199,680.27,678.63,0.2947114]
[1738047595598,0.29400955,680.25,678.64,0.27049053]
[1738047595900,0.24370199,680.24,678.65,0.29470271]
[1738047596102,0.29401819,680.23,678.65,0.29470271]
[1738047596296,0.24370199,680.22,678.65,0.29470271]
[1738047596599,0.29402684,680.21,678.65,0.29470271]
[1738047596802,0.24370199,680.2,678.65,0.29470271]
[1738047597103,0.29403549,680.19,678.65,0.29470271]
[1738047597293,0.24370199,680.18,678.65,0.29470271]
[1738047597497,0.29404413,680.17,678.65,0.29470271]
[1738047597697,0.24370199,680.16,678.65,0.29470271]
[1738047597900,0.29405278,680.15,678.65,0.29470271]
[1738047598095,0.24370199,680.14,678.65,0.29470271]
[1738047598301,0.29406142,680.13,678.65,0.29470271]
[1738047598497,0.24370199,680.12,678.66,0.27049701]
[1738047598804,0.29407007,680.11,678.66,0.27049701]
[1738047599005,0.24370199,680.1,678.66,0.27049701]
[1738047599302,0.29407872,680.09,678.66,0.27049701]
[1738047599502,0.24370199,680.08,678.66,0.27049701]
[1738047599805,0.29408737,680.07,678.66,0.27049701]
[1738047600000,0.24370199,680.06,678.66,0.27049701]
[1738047600303,0.29409602,680.05,678.66,0.27049701]
[1738047600503,0.24370199,680.04,678.66,0.27049701]
[1738047602504,0.29410467,680.03,678.66,0.27049701]
[1738047602901,0.24370199,680.02,678.66,0.27049701]
[1738047603103,0.29411332,680.01,678.66,0.27049701]
[1738047603302,0.24370199,680.0,678.66,0.27049701]
[1738047603502,0.29412197,679.99,678.66,0.27049701]
[1738047603805,0.24370199,679.98,678.66,0.27049701]
[1738047604098,0.29413062,679.97,678.66,0.27049701]
[1738047604303,0.24370199,679.96,678.66,0.27049701]
[1738047604504,0.53783693,679.96,678.66,0.27049701]
[1738047604705,0.24370199,679.95,678.66,0.27049701]
[1738047607205,0.29413494,679.96,678.67,0.29469403]
[1738047607505,0.29413494,679.96,678.68,0.27045557]
[1738047608306,0.29413494,679.96,678.69,0.27044509]
[1738047608503,0.29413494,679.96,678.69,0.56513043]
[1738047608703,0.29413494,679.96,678.7,0.27044509]
[1738047611606,0.29413494,679.96,678.71,0.29467666]
[1738047611806,0.29413494,679.96,678.72,0.27044509]
[1738047612006,0.29413494,679.96,678.72,0.56511741]
[1738047612207,0.29413494,679.96,678.73,0.27044509]
[1738047612903,0.29413494,679.96,678.74,0.27043828]
[1738047613106,0.29413494,679.96,678.73,0.27043828]
[1738047613303,0.29413494,679.96,678.72,0.29467232]
[1738047613304,0.29413494,679.96,678.74,0.27043828]
[1738047613509,0.29413494,679.96,678.73,0.27043828]
[1738047613704,0.29413494,679.96,678.75,0.27043828]
[1738047613905,0.29413494,679.96,678.72,0.29467232]
[1738047614108,0.29413494,679.96,678.73,0.27044097]
[1738047616108,0.29413494,679.96,678.72,0.29467232]
[1738047638024,0.24395943,679.95,678.73,0.27050818]
[1738047638219,0.2941436,679.94,678.73,0.27050818]
[1738047638419,0.24395943,679.93,678.73,0.27050818]
[1738047638621,0.29415225,679.92,678.73,0.27050818]
[1738047638823,0.24395943,679.91,678.73,0.27050818]
[1738047639226,0.29415225,679.92,678.72,0.29467232]
[1738047639425,0.2439575,679.91,678.73,0.27051205]
[1738047642623,0.29415225,679.92,678.73,0.27051205]
[1738047643024,0.29415225,679.92,678.74,0.27045999]
[1738047643228,0.29415225,679.92,678.75,0.27045999]
[1738047643423,0.29415225,679.92,678.76,0.27045999]
[1738047643629,0.29415225,679.92,678.77,0.27045999]
[1738047643829,0.29415225,679.92,678.72,0.29467232]
[1738047643830,0.29415225,679.92,678.73,0.27045999]
[1738047644031,0.29415225,679.92,678.74,0.27045999]
[1738047644224,0.29415225,679.92,678.73,0.27045999]
[1738047644427,0.29415225,679.92,678.72,0.29467232]
[1738047646327,0.29415225,679.92,678.77,1.10278167]
[1738047646538,0.29415225,679.92,678.77,1.39743228]
[1738047650533,0.29415225,679.92,678.77,0.29465061]
[1738047654333,0.29415225,679.92,678.78,0.27044527]
[1738047661239,0.29415225,679.92,678.77,0.29465061]
[1738047661740,0.24386728,679.91,678.78,0.27048538]
[1738047663433,0.24386728,679.91,678.77,0.29465061]
[1738047664332,0.24382273,679.9,678.77,0.29465061]
[1738047664538,0.24382273,679.89,678.77,0.29465061]
[1738047664738,0.24382273,679.88,678.77,0.29465061]
[1738047664935,0.24382273,679.91,678.77,0.29465061]
[1738047665134,0.24382273,679.9,678.77,0.29465061]
[1738047665335,0.24382273,679.89,678.77,0.29465061]
[1738047665541,0.24382273,679.88,678.77,0.29465061]
[1738047665840,0.24382273,679.87,678.77,0.29465061]
[1738047666044,0.24382004,679.86,678.77,0.29465061]
[1738047666235,0.24382004,679.91,678.77,0.29465061]
[1738047666537,0.24382004,679.9,678.77,0.29465061]
[1738047666736,0.24382004,679.91,678.77,0.29465061]
[1738047666938,0.24382004,679.9,678.77,0.29465061]
[1738047667242,0.24382004,679.89,678.77,0.29465061]
[1738047667435,0.24382004,679.91,678.77,0.29465061]
[1738047667635,0.24382004,679.9,678.77,0.29465061]
[1738047667940,0.29415225,679.92,678.77,0.29465061]
[1738047667941,0.24382004,679.89,678.77,0.29465061]
[1738047668140,0.24382004,679.91,678.77,0.29465061]
[1738047668340,0.24382004,679.9,678.77,0.29465061]
[1738047668640,0.24382004,679.89,678.77,0.29465061]
[1738047668841,0.24382004,679.91,678.77,0.29465061]
[1738047669744,0.24379718,679.9,678.77,0.29465061]
[1738047669946,0.24379718,679.91,678.77,0.29465061]
[1738047670146,0.24379718,679.9,678.77,0.29465061]